Cogmind - Beta 16.1 @@@ ROGUE MODE // 2026.03.30 @ 05:48:44 Player: FL-IST Result: Destroyed by G-34 Mercenary with Small Laser Performance ------------- Evolutions (0) 0 Regions Visited (2) 400 Robots Destroyed (26) 130 Value Destroyed (536) 536 Prototype IDs (2) 40 Alien Tech Used (0) 0 Bonus (0) 0 TOTAL SCORE: 1106 Bonus ------- None Cogmind --------- Core Integrity 0/250 Matter 219/300 Energy 78/125 System Corruption 0% Temperature Hot (270) Movement Treading (320) Ox2 Location -10/Mines Parts ------- > --- POWER (1) -------- Light Ion Engine > --- PROPULSION (2) --- Light Treads > --- UTILITY (2) ------ High-capacity Storage Unit Sensor Array > --- WEAPON (2) ------- Particle Cannon Particle Cannon > --- INVENTORY (20) --- Compact Wheel Flight Unit Flight Unit Flight Unit Flight Unit Heat Sink Medium Storage Unit Machine Analyzer Visual Processing Unit Signal Interpreter Improved Terrain Scanner Seismic Detector Hacking Suite Particle Cannon Hammer Peak State ------------ > --- POWER ------------ Light Ion Engine > --- PROPULSION ------- Light Treads Light Treads > --- UTILITY ---------- High-capacity Storage Unit Seismic Detector > --- WEAPON ----------- Particle Cannon Particle Cannon > --- INVENTORY -------- Light Ion Engine Light Treads Light Treads Light Treads Compact Wheel Flight Unit Flight Unit Flight Unit Medium Storage Unit Machine Analyzer Visual Processing Unit Sensor Array Signal Interpreter Improved Terrain Scanner Seismic Detector Seismic Detector Hacking Suite Particle Cannon Particle Cannon Rocket Launcher [Rating: 12] Favorites ----------- Power Light Ion Engine Engine Light Ion Engine Propulsion Light Treads Treads Light Treads Wheel Wheel Utility Seismic Detector Device Seismic Detector Storage High-capacity Storage Unit Weapon Particle Cannon Energy Cannon Particle Cannon Ballistic Gun Light Assault Rifle Ballistic Cannon Light Cannon Launcher Rocket Launcher Build | -11 -10 -10 ------- Run | Yrd Mat Min Slots Evolved . | . . . Power . | . . . Propulsion . | . . . Utility . | . . . Weapon . | . . . Parts Attached 27 | 7 12 8 Power 3 | 1 1 1 Engine 3 | 1 1 1 Core . | . . . Reactor . | . . . Propulsion 7 | 2 3 2 Treads 5 | 1 3 1 Leg . | . . . Wheel 2 | 1 . 1 Hover . | . . . Flight . | . . . Utility 8 | 2 3 3 Device 5 | 1 1 3 Storage 3 | 1 2 . Processor . | . . . Hackware . | . . . Protection . | . . . Artifact . | . . . Weapon 9 | 2 5 2 Energy Gun . | . . . Energy Cannon 4 | . 3 1 Ballistic Gun 2 | 2 . . Ballistic Cannon 2 | . 2 . Launcher 1 | . . 1 Special Weapon . | . . . Impact Weapon . | . . . Slashing Weapon . | . . . Piercing Weapon . | . . . Special Melee Weapon . | . . . Unidentified Prototypes . | . . . Parts Lost 6 | . . 6 Power 1 | . . 1 Propulsion 2 | . . 2 Utility 1 | . . 1 Weapon 2 | . . 2 Highest Loss Streak 3 | . . 3 To Critical Strikes . | . . . Average Backups 15 | 2 15 16 Power . | . 1 . Propulsion 5 | 1 5 6 Utility 6 | . 6 8 Weapon 2 | . 2 2 Tool/Special . | . . . Unused Backups 16 | 1 5 10 Power . | . . . Propulsion 4 | . . 4 Utility 6 | . . 6 Weapon 6 | 1 5 . Tool/Special . | . . . Average Slot Usage (%) 99 | . 100 94 Engine 13 | . 14 12 Treads 20 | . 21 14 Wheel 7 | . 6 12 Device 13 | . 14 11 Storage 14 | . 14 14 Energy Cannon 14 | . 11 26 Ballistic Gun 7 | . 8 . Ballistic Cannon 6 | . 7 . Peak Build Rating 12 | 7 12 12 Average Rating 9 | 5 9 10 On Entrance 6 | . 7 12 Avg Prop Armor Cover (%) 11 | 14 10 13 Naked Turns . | . . . Heaviest Build 54 | 12 54 54 Greatest Support 40 | 20 40 40 Greatest Overweight (x) 4 | 1 4 3 Average Overweight (x) 1 | . 1 2 Largest Inventory Capacity 20 | 8 20 20 Average Capacity 17 | 7 17 20 Most Carried 20 | 5 20 20 Average Carried 15 | 3 16 16 Final Capacity 20 | 8 20 20 Final Carried 20 | 5 20 15 Class Distribution -------------------- 90% | Mutant 9% | Scavenger-Mutant Dominant Class ---------------- Mutant | -10/Materials Mutant | -10/Mines Resources | -11 -10 -10 ----------- Run | Yrd Mat Min Matter Collected 776 | 362 374 40 Remotely . | . . . Salvage Created 924 | 176 637 111 Parts 50 | 10 34 6 Haulers Intercepted 2 | . 2 . Recyclers Shooed . | . . . Parts Field Recycled . | . . . Retrieved Matter . | . . . Parts Self-Destructed . | . . . Prevented . | . . . Parts Restored . | . . . Kills | -11 -10 -10 ------- Run | Yrd Mat Min Combat Hostiles Destroyed 27 | . 11 16 Guns 7 | . 7 . Cannons 9 | . 4 5 AOE 11 | . . 11 Classes Destroyed 9 | 2 6 1 Tunneler 4 | 4 . . Hauler 2 | . 2 . Recycler 2 | 1 1 . Mechanic 1 | . 1 . Operator 1 | . 1 . Watcher 3 | . 3 . Swarmer 4 | . 3 1 Grunt 9 | . 8 1 Assembled 14 | . . 14 Best Kill Streak 13 | 3 4 13 Combat Bots Only 13 | . 3 13 Max Kills in Single Turn 5 | 1 2 5 Gunslinging . | . . . Exploded 5 | . . 5 Melee . | . . . Uniques/NPCs Destroyed . | . . . Combat | -11 -10 -10 -------- Run | Yrd Mat Min Hostile Shots Fired 114 | . 45 69 Missed 25 | . 8 17 Hits 89 | . 37 52 Melee 6 | . . 6 Projectile 83 | . 37 46 Damage Taken 1297 | . 431 866 Core 251 | . 109 142 Absorbed by Shields . | . . . Core Remaining (%) 100 | 100 . . Volleys Fired 87 | 23 51 13 Largest 2 | 2 2 2 Hottest 136 | 40 136 136 Shots Fired 173 | 46 102 25 Gun 100 | 46 54 . Cannon 69 | . 48 21 Launcher 4 | . . 4 Special . | . . . Kinetic 116 | 46 70 . Thermal 53 | . 32 21 Explosive 4 | . . 4 Electromagnetic . | . . . Robot Hit Streak 14 | 6 14 10 Robot Miss Streak 4 | 4 3 3 Penetration Max . | . . . Secondary Targets . | . . . Shots Hit Robots 106 | 25 68 13 Core Hits 56 | 9 26 21 Critical Kills . | . . . Critical Parts Destroyed . | . . . Critical Strikes . | . . . Melee Attacks . | . . . Impact . | . . . Slashing . | . . . Piercing . | . . . Sneak Attacks . | . . . Combat Hostiles . | . . . Follow-up Attacks . | . . . Damage Inflicted 2226 | 242 1025 959 Guns 673 | 242 431 . Cannons 860 | . 594 266 Explosions 693 | . . 693 Melee . | . . . Ramming . | . . . Kinetic 796 | 242 554 . Thermal 737 | . 471 266 Explosive 693 | . . 693 Electromagnetic . | . . . Impact . | . . . Slashing . | . . . Piercing . | . . . Highest Corruption . | . . . Average Corruption . | . . . Corruption Purged . | . . . Corruption Blocked . | . . . Overload Shots . | . . . Overflow Damage 61 | . 6 55 Projectiles 7 | . 6 1 Explosions 54 | . . 54 Melee . | . . . Knockbacks 2 | . 2 . Impact . | . . . Kinetic 2 | . 2 . Secondary . | . . . Self-Inflicted Damage 77 | . . 77 Shots 2 | . . 2 Rammed . | . . . Targets Rammed . | . . . Kicked . | . . . Crushed . | . . . Highest Temperature 382 | . 382 264 Average Temperature 120 | . 138 81 Received Heat Transfer 431 | . 207 224 Effects 3 | . 3 . Shutdowns 1 | . 1 . Matter Decay 1 | . 1 . Short Circuit 1 | . 1 . Siege Activations . | . . . Martial Activations . | . . . Shielding Activations . | . . . Robots Disrupted . | . . . Combat Hostiles . | . . . Robots Corrupted . | . . . Combat Hostiles . | . . . Parts Fried . | . . . Impact Corruptions . | . . . Robots Melted . | . . . Combat Hostiles . | . . . Parts Melted 2 | . 2 . Heat Transferred 1295 | . 814 481 Parts Sabotaged . | . . . Parts Stolen . | . . . Parts Stripped . | . . . Power Chain Reactions . | . . . Alert | -11 -10 -10 ------- Run | Yrd Mat Min Maximum Alert Level . | . . . Low Security (%) 100 | 100 100 100 Level 1 . | . . . Level 2 . | . . . Level 3 . | . . . Level 4 . | . . . Level 5 . | . . . High Security . | . . . Max Security . | . . . Peak Influence 105 | 10 105 40 Initial 19 | . . 19 Average 29 | 2 35 8 Influence Increases 580 | 25 446 109 Destroy 0b10 Robot/C 260 | . 220 40 Destroy 0b10 Robot/NC 65 | 25 40 . Destroy Leader 70 | . 60 10 Successful Hack 19 | . 19 . Select Force Hacks 60 | . 60 . Disable Machine 45 | . 45 . Destroy Structure 31 | . 2 29 Lose Combat Pursuer 30 | . . 30 Influence Decreases 550 | 25 395 130 Entered New Map 32 | . . 32 Time Decay 489 | 25 395 69 Lost Part 29 | . . 29 Squads Dispatched 3 | . 3 . Investigation 2 | . 2 . Extermination . | . . . Reinforcement 1 | . 1 . Assault . | . . . Garrison . | . . . Intercept . | . . . Searches Triggered . | . . . Construction Impeded . | . . . Haulers Reinforced . | . . . Active Scanning Responses . | . . . Cargo Convoy Interrupts . | . . . Stealth | -11 -10 -10 --------- Run | Yrd Mat Min Distress Signals . | . . . Communications Jammed . | . . . Distress Signals . | . . . Times Spotted 54 | . 18 36 Peak Tracking Total 22 | . 3 22 Tactical Retreats 4 | . . 4 Traps | -11 -10 -10 ------- Run | Yrd Mat Min Traps Triggered . | . . . Indirectly . | . . . Trap Hack Attempts . | . . . Triggered . | . . . Disarmed . | . . . Reprogrammed . | . . . Reused . | . . . Traps Extracted . | . . . Installed . | . . . Triggered . | . . . Machines | -11 -10 -10 ---------- Run | Yrd Mat Min Machines Disabled 3 | . 3 . Max in Single Turn 1 | . 1 . Machines Repaired . | . . . Machines Dismantled . | . . . Machines Sabotaged . | . . . Overloaded Fab Kills . | . . . Hacking | -11 -10 -10 --------- Run | Yrd Mat Min Machines Accessed 9 | . 9 . Terminals 7 | . 7 . Fabricators . | . . . Repair Stations . | . . . Recycling Units 2 | . 2 . Scanalyzers . | . . . Garrison Access . | . . . Total Hacks 28 | . 28 . Successful 16 | . 16 . Failed 11 | . 11 . Catastrophic 1 | . 1 . Database Lockouts 1 | . 1 . Manual 25 | . 25 . Terminals 21 | . 21 . Fabricators . | . . . Repair Stations . | . . . Recycling Units 7 | . 7 . Scanalyzers . | . . . Garrison Access . | . . . Terminal Hacks 2 | . 2 . Robot Analysis 1 | . 1 . Prototype ID Bank 1 | . 1 . Fabricator Hacks . | . . . Repair Station Hacks . | . . . Recycling Unit Hacks 1 | . 1 . Retrieve Components 1 | . 1 . Scanalyzer . | . . . Garrison Access Hacks . | . . . Unauthorized Hacks 13 | . 13 . Terminals 11 | . 11 . Botnet 5 | . 5 . Skim 6 | . 6 . Fabricators . | . . . Repair Stations . | . . . Recycling Units 2 | . 2 . Tunnel 2 | . 2 . Scanalyzers . | . . . Garrison Access . | . . . Data Cores Recovered 1 | . 1 . Used 1 | . 1 . Hacking Detections 7 | . 7 . Full Trace Events . | . . . Feedback Events . | . . . Feedback Blocked . | . . . Robot Schematics Acquired . | . . . Robots Built . | . . . Authchips . | . . . Time . | . . . Total Robot Build Rating . | . . . Part Schematics Acquired . | . . . Parts Built . | . . . Authchips . | . . . Time . | . . . Total Part Build Rating . | . . . Part Studies Acquired . | . . . Parts Repaired . | . . . Time . | . . . Parts Recycled . | . . . Recycled Matter . | . . . Retrieved Matter . | . . . Retrieved Components 9 | . 9 . Parts Scanalyzed . | . . . Part Schematics Acquired . | . . . Parts Damaged . | . . . Bothacking | -11 -10 -10 ------------ Run | Yrd Mat Min Used RIF Installer . | . . . Robots Hacked . | . . . Non-combat . | . . . Combat . | . . . Robot Hacks Applied . | . . . Relay Couplers Released . | . . . Fabnet Peak Effective % . | . . . Robots Rewired . | . . . Allies Hacked . | . . . Hacks Repelled . | . . . Allies | -11 -10 -10 -------- Run | Yrd Mat Min Total Allies . | . . . Largest Group . | . . . Highest-Rated Group . | . . . Highest-Rated Ally . | . . . Total Orders . | . . . Ally Attacks . | . . . Total Damage . | . . . Kills . | . . . Allies Corrupted . | . . . Allies Melted . | . . . Intel | -11 -10 -10 ------- Run | Yrd Mat Min Active Infowar (turns) 1818 | 38 1601 179 Sensors 171 | . . 171 Seismic 1647 | 38 1601 8 Robot Analysis Total 1 | . 1 . Derelict Logs Recovered . | . . . Drone Launches . | . . . Drone Recoveries . | . . . Exploration | -11 -10 -10 ------------- Run | Yrd Mat Min Turns Passed 2041 | 146 1601 294 Spaces Moved 737 | 71 601 65 Core 3 | 3 . . Treads 300 | 2 297 1 Legs . | . . . Wheels 434 | 66 304 64 Hover . | . . . Flight . | . . . Fastest Speed 50 | 50 95 130 Average Speed 166 | 91 177 143 Slowest Speed 320 | 160 320 240 Overloaded Moves . | . . . Propulsion Burnouts . | . . . Robots Hopped . | . . . Potential Cave-ins . | . . . Cave-ins Triggered . | . . . Exploration Rate (%) 40 | 4 97 19 Regions Visited 2 Branch Regions 1 Pre-discovered Areas 2 | . 2 . Known Exits Taken . | . . . Unknown Exits Taken 2 | 1 1 . Scrap Searched . | . . . Spaces Dug . | . . . Terrain Destroyed 37 | . . 37 Melee . | . . . Projectile . | . . . AOE 37 | . . 37 Terrain Rammed . | . . . Walls Destroyed . | . . . Machines Disabled . | . . . Actions | -11 -10 -10 --------- Run | Yrd Mat Min Total 1386 | 107 1040 239 Wait 486 | . 335 151 Move 735 | 70 600 65 Hop . | . . . Pick Up 31 | 6 25 . Fast Attach 7 | 7 . . Attach 6 | . 1 5 Detach . | . . . Swap 18 | . 13 5 Drop 16 | 1 15 . Fire 87 | 23 51 13 Melee . | . . . Ram . | . . . Kick . | . . . Crush . | . . . Escape Stasis . | . . . Rewire . | . . . Trap . | . . . Miscellaneous . | . . . Route ------- -11/Scrapyard -10/Materials (discovered 5 exits: *Mat x3 / [*Min] / Sub) -10/Mines (discovered 2 exits: Mat x2) History --------- Turn | Location | Event 34 | -11/Scrapyard | Discovered new exit (range 15) 147 | -11/Scrapyard | Entered Materials 305 | -10/Materials | Build established: Mutant 608 | -10/Materials | Discovered new exit (range 12) 647 | -10/Materials | Central database locked down 675 | -10/Materials | Discovered new exit (range 11) 847 | -10/Materials | Learned 2 Storage zone layouts 884 | -10/Materials | Learned 2 Storage zone layouts 910 | -10/Materials | Learned location of 1 exit from Recycling 925 | -10/Materials | Learned 2 Mines zone layouts 932 | -10/Materials | Identified exit to Materials 977 | -10/Materials | Identified exit to Subcaves 1748 | -10/Materials | Entered Mines 1749 | -10/Mines | Assembled infested the area 1754 | -10/Mines | Assisted by a Guerilla fighting off Assembled 1759 | -10/Mines | Core integrity fell below 50% 1801 | -10/Mines | Core integrity fell below 20% 1810 | -10/Mines | Destroyed 13 combat bots 1834 | -10/Mines | Lost 3 parts (1p2w) 2042 | -10/Mines | Destroyed by G-34 Mercenary with Small Laser Last Messages --------------- 01792_ Rocket Launcher destroyed. 01798_ as-01594 destroyed. 01803_ Particle Cannon destroyed. 01806_ Destroyed Asb. Hover Unit. 01821_ as-80700 destroyed. 01826_ as-50277 destroyed. 01835_ S-10 Pest destroyed. 01842_ The unstable cave ceiling collapses. 01870_ Flight Unit crushed. 01974_ Acquired 11 matter. 01978_ The unstable cave ceiling collapses. 01988_ U-05 Engineer builds a Wall. 01997_ Acquired 1 matter. 02004_ U-05 Engineer lays Concrete. 02006_ U-05 Engineer builds a Wall. 02007_ Acquired 17 matter. 02010_ U-05 Engineer lays Concrete. 02013_ U-05 Engineer builds a Wall. 02033_ Lgt. Treads destroyed. 02040_ G-47 Trooper destroyed. Map ----- +----------------------------------------------------+ | ?????????????????????????????????????? | | ?????????????????????????????????????? | | ?????????????????????????????????????? | | ?????????????????????????????????????? | | ?????????????????????????????????????? | | ?????????????????????????????????????? | | ?????????????????????????????????????? | | ?????????????????????????????????????? | | ???????????????????? ????????????????? | | ??????????????????? ????????????????? | | ??????????????????? ???????????????? | | ???????????????????# ???#???????????? | | ???????????????????# ?## ???????????? | | ???????????????????# ## ???????????? | | ???????????????????# g%* ???????????? | | ???????????????????# ???????????? | | ???????????????????? ???????????? | | ????????????????????? ???????????? | | ?????????????????????# #???????????? | | ????????????????##???? ##???###????? | | ???????????????## ???# #??# ##???? | | ???????????### # ### #?# ##??? | | ?????????# ## #??? | | ???????????????# #??? | | ???????????????## #???? | | ????????????????# #@#### ##???? | | ????????????????## ## #?????#????? | | ?????????????????## #?# #??????????? | | ??????????????????## ??# #??????????? | | ???????????????????#????# ##?????????? | | ???????????????????# ??## ####??????? | | ???????????????????# ## ##?????? | | ???????????????????# #?????? | | ???????????????????# ? #?????? | | ???????????????????## ###???? | | ????????????????????# ### #???? | | ???????????????????# #?### #???? | | ??????????????????# ?## # ##??? | | ?????????????????# ## # # #??? | | ???????????????? ?# ## #####?? | | ?????????????? ?#### ######?? | | ?????????????? ?### ##? | | ?????????????? ??## #? | | ??????????????? ????# ##* ##? | | ?????????????????? ?????## ### [#?? | | ?????????????????????????### #?# =#?? | | ????????????????????????## # #?# ##?? | | ????????????????????????# # # # #??? | | ????????????????????????# # # # #??? | | ????????????????????????# # % ##?? | +----------------------------------------------------+ Best States ------------- Heat Dissipation 35 Energy Generation 10 Energy Capacity 250 Matter Stores 300 Matter Capacity 300 Sight Range 16 Robot Scan Range 14 Terrain Scan Density 10 Evasion (%) 44 Recoil Reduction 2 Item Schematics ----------------- None Robot Schematics ------------------ None Fabricated ------------ Nothing Repaired ---------- Nothing Studied --------- None Alien Tech Used ----------------- None Achievements -------------- None Challenges ------------ None Game ------ Seed AccelerationDecoderMachine Manual? 0 Play Time 00:16:31 Cumulative 365.5 hours Start 2026.03.29 @ 00:16:18 End 2026.03.30 @ 05:48:44 Sessions 2 Manual Loads 0 Difficulty Rogue Special Mode None Game No. 286 Rogue 286 Adventurer 0 Explorer 0 Win Type - Total 22 Types 12/0/8/2/0/0/0/0/0/0 Lore% 87 Gallery% 77 Achievement% 67 Wizard Run 0 Options --------- Layout 1 ASCII 0 Keyboard 0 Movement Numpad Keybinds 0 Fullscreen 1 Font 32/SmallcapsGlow Map View 77x35 Zoom Use 0% Tactical HUD 1 Map Filters NONE Filters NONE Steam 1 RUN: 7dc82a54-83fa-4881-8d2c-67e1aaf37a44